[Event "Titled Tuesday Blitz May 4 2021"]
[White "Stepak, Yedael"]
[Black "Grigoryan, Meri"]
[WhiteFideId "2800454"]
[BlackFideId "13300571"]
[WhiteElo "2146"]
[BlackElo "2007"]
[Result "1-0"]
[Round "09"]
[TimeControl "180+1"]
[Date "2021.05.04"]
[WhiteClock "0:00:43"]
[BlackClock "0:00:08"]

1. d4 {[%clk 0:03:00]}  d5 {[%clk 0:03:00]} 2. Nf3 {[%clk 0:02:55]}  Nf6 {[%clk 0:02:57]} 3. e3 {[%clk 0:02:55]}  e6 {[%clk 0:02:57]} 4. c4 {[%clk 0:02:55]}  c5 {[%clk 0:02:57]} 5. dxc5 {[%clk 0:02:54]}  Bxc5 {[%clk 0:02:57]} 6. a3 {[%clk 0:02:54]}  Nc6 {[%clk 0:02:56]} 7. b4 {[%clk 0:02:53]}  Be7 {[%clk 0:02:57]} 8. c5 {[%clk 0:02:53]}  O-O {[%clk 0:02:57]} 9. Bb2 {[%clk 0:02:53]}  Qc7 {[%clk 0:02:56]} 10. Nbd2 {[%clk 0:02:53]}  a6 {[%clk 0:02:56]} 11. Be2 {[%clk 0:02:50]}  e5 {[%clk 0:02:56]} 12. Nb3 {[%clk 0:02:45]}  Bf5 {[%clk 0:02:49]} 13. h3 {[%clk 0:02:44]}  Rfd8 {[%clk 0:02:07]} 14. O-O {[%clk 0:02:42]}  Ne4 {[%clk 0:01:52]} 15. Qc1 {[%clk 0:02:35]}  Bf6 {[%clk 0:01:49]} 16. Rd1 {[%clk 0:02:24]}  Rd7 {[%clk 0:01:22]} 17. Nbd2 {[%clk 0:02:23]}  Rad8 {[%clk 0:01:14]} 18. Nxe4 {[%clk 0:02:21]}  Bxe4 {[%clk 0:00:53]} 19. Nd2 {[%clk 0:02:13]}  Bg6 {[%clk 0:00:52]} 20. Nb3 {[%clk 0:02:08]}  d4 {[%clk 0:00:46]} 21. Bg4 {[%clk 0:01:59]}  Re7 {[%clk 0:00:26]} 22. exd4 {[%clk 0:01:50]}  exd4 {[%clk 0:00:26]} 23. Qd2 {[%clk 0:01:36]}  d3 {[%clk 0:00:18]} 24. Bxf6 {[%clk 0:01:33]}  gxf6 {[%clk 0:00:19]} 25. Re1 {[%clk 0:01:28]}  Ne5 {[%clk 0:00:19]} 26. Qc3 {[%clk 0:01:16]}  h5 {[%clk 0:00:17]} 27. Bd1 {[%clk 0:01:12]}  Qc6 {[%clk 0:00:16]} 28. f4 {[%clk 0:01:03]}  d2 {[%clk 0:00:08]} 29. Re3 {[%clk 0:00:43]} 1-0


[Site "https://www.chess.com"]

[Event "Titled Tuesday Blitz May 4 2021"]
[White "Suasnabar, Jesus"]
[Black "Moore, Nicholas"]
[WhiteFideId "3800776"]
[BlackFideId "4303709"]
[WhiteElo "2002"]
[BlackElo "2368"]
[Result "0-1"]
[Round "09"]
[TimeControl "180+1"]
[Date "2021.05.04"]
[WhiteClock "0:00:01"]
[BlackClock "0:00:25"]

1. d4 {[%clk 0:02:59]}  d5 {[%clk 0:02:57]} 2. c4 {[%clk 0:02:59]}  c6 {[%clk 0:02:58]} 3. Nc3 {[%clk 0:02:59]}  Nf6 {[%clk 0:02:55]} 4. Nf3 {[%clk 0:02:59]}  dxc4 {[%clk 0:02:55]} 5. e3 {[%clk 0:02:58]}  b5 {[%clk 0:02:54]} 6. a4 {[%clk 0:02:58]}  b4 {[%clk 0:02:51]} 7. Na2 {[%clk 0:02:57]}  a5 {[%clk 0:02:44]} 8. Bxc4 {[%clk 0:02:57]}  e6 {[%clk 0:02:33]} 9. b3 {[%clk 0:02:56]}  Be7 {[%clk 0:02:32]} 10. Bb2 {[%clk 0:02:56]}  O-O {[%clk 0:02:33]} 11. Nc1 {[%clk 0:02:56]}  Nbd7 {[%clk 0:02:32]} 12. O-O {[%clk 0:02:47]}  Qc7 {[%clk 0:02:23]} 13. Nd3 {[%clk 0:02:43]}  Nb6 {[%clk 0:02:22]} 14. Nde5 {[%clk 0:02:32]}  Nxc4 {[%clk 0:02:20]} 15. Nxc4 {[%clk 0:02:32]}  c5 {[%clk 0:02:17]} 16. dxc5 {[%clk 0:02:25]}  Qxc5 {[%clk 0:02:13]} 17. Rc1 {[%clk 0:02:24]}  Rd8 {[%clk 0:02:06]} 18. Qc2 {[%clk 0:02:03]}  Ba6 {[%clk 0:01:51]} 19. Rfd1 {[%clk 0:02:01]}  Rxd1+ {[%clk 0:01:49]} 20. Rxd1 {[%clk 0:01:59]}  Rc8 {[%clk 0:01:44]} 21. Nfd2 {[%clk 0:01:09]}  Bb7 {[%clk 0:01:33]} 22. Qb1 {[%clk 0:00:58]}  Qg5 {[%clk 0:01:26]} 23. e4 {[%clk 0:00:32]}  Bc5 {[%clk 0:01:04]} 24. Nf3 {[%clk 0:00:21]}  Qh5 {[%clk 0:00:51]} 25. Bxf6 {[%clk 0:00:20]}  gxf6 {[%clk 0:00:49]} 26. Qb2 {[%clk 0:00:16]}  Be7 {[%clk 0:00:43]} 27. Rd7 {[%clk 0:00:14]}  Bxe4 {[%clk 0:00:36]} 28. Rxe7 {[%clk 0:00:11]}  Bxf3 {[%clk 0:00:35]} 29. gxf3 {[%clk 0:00:06]}  Qxf3 {[%clk 0:00:35]} 30. Qc1 {[%clk 0:00:02]}  Qxb3 {[%clk 0:00:26]} 31. Qg5+ {[%clk 0:00:01]}  fxg5 {[%clk 0:00:25]} 0-1


[Site "https://www.chess.com"]

[Event "Titled Tuesday Blitz May 4 2021"]
[White "Suvorov, Alexander"]
[Black "Zhukov, Anton"]
[WhiteFideId "12977063"]
[BlackFideId "34187534"]
[WhiteElo "2221"]
[BlackElo "2172"]
[Result "1-0"]
[Round "09"]
[TimeControl "180+1"]
[Date "2021.05.04"]
[WhiteClock "0:00:06"]
[BlackClock "0:00:12"]

1. d4 {[%clk 0:03:00]}  Nf6 {[%clk 0:02:59]} 2. c4 {[%clk 0:03:00]}  e6 {[%clk 0:03:00]} 3. Nc3 {[%clk 0:03:00]}  Bb4 {[%clk 0:03:00]} 4. e3 {[%clk 0:03:00]}  O-O {[%clk 0:02:59]} 5. Bd2 {[%clk 0:03:00]}  d5 {[%clk 0:02:59]} 6. Nf3 {[%clk 0:02:57]}  c6 {[%clk 0:02:59]} 7. Bd3 {[%clk 0:02:52]}  Nbd7 {[%clk 0:02:58]} 8. O-O {[%clk 0:02:52]}  Bd6 {[%clk 0:02:57]} 9. Rc1 {[%clk 0:02:42]}  dxc4 {[%clk 0:02:56]} 10. Bxc4 {[%clk 0:02:41]}  e5 {[%clk 0:02:56]} 11. h3 {[%clk 0:02:28]}  Qe7 {[%clk 0:02:53]} 12. Bb3 {[%clk 0:01:37]}  e4 {[%clk 0:02:40]} 13. Ne1 {[%clk 0:01:36]}  Nb6 {[%clk 0:02:40]} 14. f4 {[%clk 0:01:32]}  exf3 {[%clk 0:02:36]} 15. Qxf3 {[%clk 0:01:32]}  c5 {[%clk 0:02:26]} 16. Nb5 {[%clk 0:01:25]}  Ne4 {[%clk 0:01:48]} 17. Ba5 {[%clk 0:01:14]}  c4 {[%clk 0:01:23]} 18. Bc2 {[%clk 0:01:08]}  Ng5 {[%clk 0:01:18]} 19. Qf2 {[%clk 0:00:56]}  a6 {[%clk 0:01:04]} 20. Nxd6 {[%clk 0:00:42]}  Qxd6 {[%clk 0:01:04]} 21. e4 {[%clk 0:00:38]}  Nd7 {[%clk 0:01:00]} 22. Bc3 {[%clk 0:00:30]}  Qg6 {[%clk 0:00:52]} 23. Qe3 {[%clk 0:00:19]}  Nf6 {[%clk 0:00:43]} 24. Rxf6 {[%clk 0:00:13]}  gxf6 {[%clk 0:00:41]} 25. Kh2 {[%clk 0:00:08]}  Re8 {[%clk 0:00:40]} 26. e5 {[%clk 0:00:04]}  Bf5 {[%clk 0:00:40]} 27. Bxf5 {[%clk 0:00:04]}  Qxf5 {[%clk 0:00:40]} 28. Nf3 {[%clk 0:00:04]}  Ne6 {[%clk 0:00:23]} 29. Rf1 {[%clk 0:00:02]}  Qf4+ {[%clk 0:00:22]} 30. Qxf4 {[%clk 0:00:02]}  Nxf4 {[%clk 0:00:23]} 31. g3 {[%clk 0:00:02]}  Nd5 {[%clk 0:00:23]} 32. exf6 {[%clk 0:00:02]}  Re2+ {[%clk 0:00:21]} 33. Kg1 {[%clk 0:00:02]}  Nxc3 {[%clk 0:00:19]} 34. bxc3 {[%clk 0:00:03]}  Rxa2 {[%clk 0:00:19]} 35. Ne5 {[%clk 0:00:03]}  Re8 {[%clk 0:00:18]} 36. Rf4 {[%clk 0:00:03]}  Re2 {[%clk 0:00:11]} 37. Rg4+ {[%clk 0:00:03]}  Kf8 {[%clk 0:00:11]} 38. Rg7 {[%clk 0:00:04]}  R8xe5 {[%clk 0:00:12]} 39. dxe5 {[%clk 0:00:05]}  Rxe5 {[%clk 0:00:12]} 40. Rxh7 {[%clk 0:00:06]}  Re6 {[%clk 0:00:12]} 41. Rh8# {[%clk 0:00:06]} 1-0


[Site "https://www.chess.com"]

[Event "Titled Tuesday Blitz May 4 2021"]
[White "Sviridova, Vlada"]
[Black "Navalgund, Niranjan"]
[WhiteFideId "24109606"]
[BlackFideId "5030854"]
[WhiteElo "2101"]
[BlackElo "2290"]
[Result "0-1"]
[Round "09"]
[TimeControl "180+1"]
[Date "2021.05.04"]
[WhiteClock "0:00:05"]
[BlackClock "0:01:36"]

1. d4 {[%clk 0:03:00]}  Nf6 {[%clk 0:02:54]} 2. c4 {[%clk 0:03:00]}  Nc6 {[%clk 0:02:53]} 3. d5 {[%clk 0:02:53]}  Ne5 {[%clk 0:02:51]} 4. Qc2 {[%clk 0:02:48]}  e6 {[%clk 0:02:50]} 5. f4 {[%clk 0:02:38]}  Ng6 {[%clk 0:02:50]} 6. e4 {[%clk 0:02:37]}  Bc5 {[%clk 0:02:49]} 7. Nf3 {[%clk 0:01:40]}  exd5 {[%clk 0:02:44]} 8. cxd5 {[%clk 0:01:39]}  d6 {[%clk 0:02:43]} 9. Nc3 {[%clk 0:01:25]}  O-O {[%clk 0:02:42]} 10. Bd2 {[%clk 0:01:20]}  Ng4 {[%clk 0:02:41]} 11. O-O-O {[%clk 0:01:08]}  Nf2 {[%clk 0:02:40]} 12. Bd3 {[%clk 0:01:02]}  Nxh1 {[%clk 0:02:39]} 13. Rxh1 {[%clk 0:01:02]}  c6 {[%clk 0:02:37]} 14. h4 {[%clk 0:00:48]}  h5 {[%clk 0:02:34]} 15. e5 {[%clk 0:00:43]}  dxe5 {[%clk 0:02:33]} 16. Bxg6 {[%clk 0:00:38]}  fxg6 {[%clk 0:02:34]} 17. Qxg6 {[%clk 0:00:32]}  Qe8 {[%clk 0:02:32]} 18. Qg5 {[%clk 0:00:19]}  exf4 {[%clk 0:02:23]} 19. Re1 {[%clk 0:00:17]}  Qf7 {[%clk 0:02:18]} 20. Ne4 {[%clk 0:00:16]}  Be7 {[%clk 0:02:17]} 21. Qe5 {[%clk 0:00:15]}  cxd5 {[%clk 0:02:15]} 22. Neg5 {[%clk 0:00:15]}  Bxg5 {[%clk 0:02:15]} 23. Nxg5 {[%clk 0:00:16]}  Qf5 {[%clk 0:02:14]} 24. Qd4 {[%clk 0:00:15]}  Qg6 {[%clk 0:02:02]} 25. Bc3 {[%clk 0:00:15]}  Bf5 {[%clk 0:02:01]} 26. Re7 {[%clk 0:00:15]}  Rf6 {[%clk 0:01:57]} 27. Qxd5+ {[%clk 0:00:12]}  Kh8 {[%clk 0:01:57]} 28. Bxf6 {[%clk 0:00:11]}  Qxf6 {[%clk 0:01:51]} 29. Nf7+ {[%clk 0:00:11]}  Kh7 {[%clk 0:01:51]} 30. Ng5+ {[%clk 0:00:11]}  Kh8 {[%clk 0:01:51]} 31. Re5 {[%clk 0:00:10]}  Rc8+ {[%clk 0:01:50]} 32. Kd2 {[%clk 0:00:10]}  Bg6 {[%clk 0:01:42]} 33. Ne6 {[%clk 0:00:06]}  f3 {[%clk 0:01:39]} 34. Nd4 {[%clk 0:00:05]}  fxg2 {[%clk 0:01:36]} 35. Rxh5+ {[%clk 0:00:04]}  Bxh5 {[%clk 0:01:35]} 36. Qxh5+ {[%clk 0:00:05]}  Qh6+ {[%clk 0:01:36]} 37. Qxh6+ {[%clk 0:00:04]}  gxh6 {[%clk 0:01:37]} 38. Nf3 {[%clk 0:00:05]}  Rf8 {[%clk 0:01:36]} 39. Ng1 {[%clk 0:00:05]}  Rf1 {[%clk 0:01:36]} 40. Nh3 {[%clk 0:00:05]}  Rh1 {[%clk 0:01:36]} 0-1


[Site "https://www.chess.com"]

[Event "Titled Tuesday Blitz May 4 2021"]
[White "Tari, Aryan"]
[Black "Arabidze, Meri"]
[WhiteFideId "1510045"]
[BlackFideId "13604040"]
[WhiteElo "2656"]
[BlackElo "2432"]
[Result "1-0"]
[Round "09"]
[TimeControl "180+1"]
[Date "2021.05.04"]
[WhiteClock "0:00:23"]
[BlackClock "0:00:14"]

1. e4 {[%clk 0:03:00]}  c5 {[%clk 0:02:59]} 2. Nc3 {[%clk 0:02:59]}  e6 {[%clk 0:02:58]} 3. f4 {[%clk 0:02:56]}  Nc6 {[%clk 0:02:57]} 4. Nf3 {[%clk 0:02:56]}  a6 {[%clk 0:02:57]} 5. g3 {[%clk 0:02:55]}  d5 {[%clk 0:02:57]} 6. Bg2 {[%clk 0:02:52]}  Nf6 {[%clk 0:02:40]} 7. e5 {[%clk 0:02:48]}  Ng4 {[%clk 0:02:32]} 8. h3 {[%clk 0:02:36]}  Nh6 {[%clk 0:02:31]} 9. g4 {[%clk 0:02:32]}  Be7 {[%clk 0:02:19]} 10. O-O {[%clk 0:02:30]}  O-O {[%clk 0:02:14]} 11. d3 {[%clk 0:02:29]}  Kh8 {[%clk 0:02:05]} 12. Ne2 {[%clk 0:02:23]}  b5 {[%clk 0:02:02]} 13. c3 {[%clk 0:02:09]}  Ra7 {[%clk 0:01:57]} 14. Be3 {[%clk 0:02:07]}  Ng8 {[%clk 0:01:49]} 15. d4 {[%clk 0:02:07]}  c4 {[%clk 0:01:40]} 16. Ng3 {[%clk 0:02:06]}  f6 {[%clk 0:01:40]} 17. Qd2 {[%clk 0:02:02]}  a5 {[%clk 0:01:37]} 18. Rae1 {[%clk 0:02:01]}  Rb7 {[%clk 0:01:36]} 19. exf6 {[%clk 0:01:49]}  Nxf6 {[%clk 0:01:33]} 20. Ne5 {[%clk 0:01:49]}  Bd7 {[%clk 0:01:29]} 21. g5 {[%clk 0:01:44]}  Ne8 {[%clk 0:01:23]} 22. Qd1 {[%clk 0:01:39]}  g6 {[%clk 0:01:17]} 23. h4 {[%clk 0:01:32]}  Nd6 {[%clk 0:01:17]} 24. h5 {[%clk 0:01:32]}  Nxe5 {[%clk 0:01:15]} 25. fxe5 {[%clk 0:01:29]}  Nf5 {[%clk 0:01:16]} 26. Nxf5 {[%clk 0:01:22]}  gxf5 {[%clk 0:01:17]} 27. g6 {[%clk 0:01:09]}  Rg8 {[%clk 0:01:17]} 28. Bh6 {[%clk 0:00:59]}  Bf8 {[%clk 0:01:11]} 29. Qd2 {[%clk 0:00:59]}  Be8 {[%clk 0:00:48]} 30. Bxf8 {[%clk 0:00:41]}  Rxf8 {[%clk 0:00:49]} 31. Qh6 {[%clk 0:00:41]}  Rg7 {[%clk 0:00:49]} 32. Rf3 {[%clk 0:00:40]}  Qh4 {[%clk 0:00:43]} 33. Ref1 {[%clk 0:00:34]}  Rfg8 {[%clk 0:00:30]} 34. Rh3 {[%clk 0:00:33]}  Qg4 {[%clk 0:00:30]} 35. Rf4 {[%clk 0:00:28]}  Qd1+ {[%clk 0:00:28]} 36. Kh2 {[%clk 0:00:28]}  Qd2 {[%clk 0:00:26]} 37. Qg5 {[%clk 0:00:24]}  Bxg6 {[%clk 0:00:17]} 38. hxg6 {[%clk 0:00:22]}  Rxg6 {[%clk 0:00:17]} 39. Rxh7+ {[%clk 0:00:22]}  Kxh7 {[%clk 0:00:16]} 40. Rh4+ {[%clk 0:00:23]}  Kg7 {[%clk 0:00:14]} 41. Qe7# {[%clk 0:00:23]} 1-0


[Site "https://www.chess.com"]

[Event "Titled Tuesday Blitz May 4 2021"]
[White "Titichoca Daza, Daniel"]
[Black "San, Thit Lwin"]
[WhiteFideId "3309550"]
[BlackFideId "13001272"]
[WhiteElo "1910"]
[BlackElo "2232"]
[Result "1-0"]
[Round "09"]
[TimeControl "180+1"]
[Date "2021.05.04"]
[WhiteClock "0:00:23"]
[BlackClock "0:00:16"]

1. e4 {[%clk 0:03:00]}  Nf6 {[%clk 0:03:00]} 2. d3 {[%clk 0:02:57]}  d5 {[%clk 0:03:00]} 3. Nd2 {[%clk 0:02:57]}  c5 {[%clk 0:03:00]} 4. Ngf3 {[%clk 0:02:58]}  Nc6 {[%clk 0:03:00]} 5. g3 {[%clk 0:02:53]}  e6 {[%clk 0:03:00]} 6. Bg2 {[%clk 0:02:52]}  Be7 {[%clk 0:03:00]} 7. O-O {[%clk 0:02:44]}  Qc7 {[%clk 0:03:00]} 8. e5 {[%clk 0:02:31]}  Nxe5 {[%clk 0:02:51]} 9. Re1 {[%clk 0:02:25]}  Nc6 {[%clk 0:02:43]} 10. c4 {[%clk 0:02:06]}  O-O {[%clk 0:02:42]} 11. b3 {[%clk 0:02:02]}  b6 {[%clk 0:02:41]} 12. Bb2 {[%clk 0:02:01]}  Bb7 {[%clk 0:02:40]} 13. Ne5 {[%clk 0:02:00]}  Rfd8 {[%clk 0:02:36]} 14. Qe2 {[%clk 0:01:59]}  dxc4 {[%clk 0:02:26]} 15. dxc4 {[%clk 0:01:47]}  Nd4 {[%clk 0:02:21]} 16. Bxd4 {[%clk 0:01:44]}  Rxd4 {[%clk 0:02:17]} 17. Bxb7 {[%clk 0:01:42]}  Qxb7 {[%clk 0:02:16]} 18. Ndf3 {[%clk 0:01:42]}  Re4 {[%clk 0:01:58]} 19. Qc2 {[%clk 0:01:41]}  Rxe1+ {[%clk 0:01:54]} 20. Rxe1 {[%clk 0:01:42]}  Rd8 {[%clk 0:01:54]} 21. Qe2 {[%clk 0:01:34]}  Qc8 {[%clk 0:01:42]} 22. h4 {[%clk 0:01:22]}  h6 {[%clk 0:01:40]} 23. g4 {[%clk 0:01:18]}  Ne8 {[%clk 0:01:28]} 24. g5 {[%clk 0:01:18]}  hxg5 {[%clk 0:01:24]} 25. hxg5 {[%clk 0:01:19]}  Nd6 {[%clk 0:01:22]} 26. g6 {[%clk 0:01:16]}  f6 {[%clk 0:01:13]} 27. Nd3 {[%clk 0:00:57]}  e5 {[%clk 0:01:13]} 28. Nh4 {[%clk 0:00:46]}  f5 {[%clk 0:00:44]} 29. Qh5 {[%clk 0:00:38]}  Bf6 {[%clk 0:00:33]} 30. Nxe5 {[%clk 0:00:29]}  Ne4 {[%clk 0:00:24]} 31. Nxf5 {[%clk 0:00:24]}  Bxe5 {[%clk 0:00:17]} 32. Qh7+ {[%clk 0:00:22]}  Kf8 {[%clk 0:00:16]} 33. Qh8# {[%clk 0:00:23]} 1-0


[Site "https://www.chess.com"]

[Event "Titled Tuesday Blitz May 4 2021"]
[White "Todorovic, Bojan"]
[Black "Rodin, Mihail"]
[WhiteFideId "917087"]
[BlackFideId "4113160"]
[WhiteElo "2266"]
[BlackElo "2368"]
[Result "1-0"]
[Round "09"]
[TimeControl "180+1"]
[Date "2021.05.04"]
[WhiteClock "0:00:18"]
[BlackClock "0:00:28"]

1. Nf3 {[%clk 0:02:59]}  d5 {[%clk 0:02:59]} 2. c4 {[%clk 0:02:58]}  e6 {[%clk 0:02:59]} 3. g3 {[%clk 0:02:57]}  Nf6 {[%clk 0:02:59]} 4. Bg2 {[%clk 0:02:56]}  c6 {[%clk 0:03:00]} 5. b3 {[%clk 0:02:54]}  a5 {[%clk 0:02:59]} 6. O-O {[%clk 0:02:43]}  a4 {[%clk 0:02:59]} 7. bxa4 {[%clk 0:02:26]}  Nbd7 {[%clk 0:02:58]} 8. Qc2 {[%clk 0:02:12]}  Qa5 {[%clk 0:02:55]} 9. cxd5 {[%clk 0:02:04]}  exd5 {[%clk 0:02:54]} 10. Nc3 {[%clk 0:02:02]}  Bd6 {[%clk 0:02:41]} 11. d3 {[%clk 0:01:56]}  O-O {[%clk 0:02:40]} 12. Bd2 {[%clk 0:01:48]}  Qa7 {[%clk 0:02:38]} 13. Be3 {[%clk 0:01:30]}  Bc5 {[%clk 0:02:36]} 14. Bxc5 {[%clk 0:01:27]}  Nxc5 {[%clk 0:02:37]} 15. e4 {[%clk 0:01:20]}  Nxa4 {[%clk 0:02:30]} 16. e5 {[%clk 0:01:06]}  Ne8 {[%clk 0:02:26]} 17. d4 {[%clk 0:01:04]}  Nc7 {[%clk 0:02:23]} 18. Ng5 {[%clk 0:01:02]}  g6 {[%clk 0:02:19]} 19. Ne2 {[%clk 0:00:59]}  Bf5 {[%clk 0:02:16]} 20. Qd2 {[%clk 0:00:59]}  h6 {[%clk 0:02:08]} 21. Nf3 {[%clk 0:00:53]}  Kg7 {[%clk 0:02:06]} 22. Nh4 {[%clk 0:00:53]}  Bg4 {[%clk 0:01:59]} 23. f3 {[%clk 0:00:50]}  Bd7 {[%clk 0:01:58]} 24. f4 {[%clk 0:00:48]}  f5 {[%clk 0:01:49]} 25. g4 {[%clk 0:00:41]}  fxg4 {[%clk 0:01:41]} 26. f5 {[%clk 0:00:41]}  Bxf5 {[%clk 0:01:39]} 27. Nxf5+ {[%clk 0:00:30]}  gxf5 {[%clk 0:01:39]} 28. Ng3 {[%clk 0:00:28]}  Kg6 {[%clk 0:01:30]} 29. Nxf5 {[%clk 0:00:20]}  Rxf5 {[%clk 0:01:10]} 30. Rxf5 {[%clk 0:00:20]}  Kxf5 {[%clk 0:01:10]} 31. Rf1+ {[%clk 0:00:19]}  Ke6 {[%clk 0:00:57]} 32. Qxh6+ {[%clk 0:00:19]}  Kd7 {[%clk 0:00:28]} 33. Qd6+ {[%clk 0:00:18]}  Kc8 {[%clk 0:00:27]} 34. Rf8+ {[%clk 0:00:18]}  Ne8 {[%clk 0:00:28]} 35. Rxe8# {[%clk 0:00:18]} 1-0


[Site "https://www.chess.com"]

[Event "Titled Tuesday Blitz May 4 2021"]
[White "Tokhirjonova, Gulrukhbegim"]
[Black "Buscar, Michael"]
[WhiteFideId "14203626"]
[BlackFideId "2603616"]
[WhiteElo "2236"]
[BlackElo "2010"]
[Result "0-1"]
[Round "09"]
[TimeControl "180+1"]
[Date "2021.05.04"]
[WhiteClock "0:00:03"]
[BlackClock "0:00:23"]

1. e4 {[%clk 0:03:00]}  c5 {[%clk 0:02:57]} 2. Nf3 {[%clk 0:02:58]}  Nc6 {[%clk 0:02:58]} 3. Bb5 {[%clk 0:02:52]}  Nf6 {[%clk 0:02:57]} 4. Nc3 {[%clk 0:02:49]}  g6 {[%clk 0:02:56]} 5. O-O {[%clk 0:02:48]}  Bg7 {[%clk 0:02:56]} 6. Re1 {[%clk 0:02:49]}  O-O {[%clk 0:02:56]} 7. e5 {[%clk 0:02:49]}  Ne8 {[%clk 0:02:57]} 8. d3 {[%clk 0:02:44]}  Nc7 {[%clk 0:02:57]} 9. Bc4 {[%clk 0:02:40]}  d5 {[%clk 0:02:50]} 10. exd6 {[%clk 0:02:39]}  exd6 {[%clk 0:02:43]} 11. Nd5 {[%clk 0:02:38]}  Bg4 {[%clk 0:02:35]} 12. h3 {[%clk 0:02:38]}  Bxf3 {[%clk 0:02:30]} 13. Qxf3 {[%clk 0:02:37]}  Ne5 {[%clk 0:02:30]} 14. Qg3 {[%clk 0:02:27]}  Nxc4 {[%clk 0:02:26]} 15. dxc4 {[%clk 0:02:28]}  Nxd5 {[%clk 0:02:24]} 16. cxd5 {[%clk 0:02:29]}  Re8 {[%clk 0:02:20]} 17. Bg5 {[%clk 0:02:16]}  Qa5 {[%clk 0:02:13]} 18. c3 {[%clk 0:02:09]}  Qb6 {[%clk 0:01:56]} 19. Rad1 {[%clk 0:01:47]}  Qxb2 {[%clk 0:01:51]} 20. Rxe8+ {[%clk 0:01:39]}  Rxe8 {[%clk 0:01:50]} 21. Qxd6 {[%clk 0:01:39]}  Qxc3 {[%clk 0:01:51]} 22. Be7 {[%clk 0:01:23]}  Qc2 {[%clk 0:01:19]} 23. Rf1 {[%clk 0:01:09]}  Qe4 {[%clk 0:01:10]} 24. Bg5 {[%clk 0:01:02]}  c4 {[%clk 0:00:53]} 25. Be3 {[%clk 0:00:55]}  c3 {[%clk 0:00:50]} 26. Qc5 {[%clk 0:00:55]}  Rd8 {[%clk 0:00:46]} 27. d6 {[%clk 0:00:49]}  Qc6 {[%clk 0:00:44]} 28. Qxc6 {[%clk 0:00:32]}  bxc6 {[%clk 0:00:45]} 29. Rd1 {[%clk 0:00:24]}  Rd7 {[%clk 0:00:45]} 30. Kf1 {[%clk 0:00:19]}  Be5 {[%clk 0:00:39]} 31. Bc5 {[%clk 0:00:17]}  f5 {[%clk 0:00:36]} 32. g3 {[%clk 0:00:16]}  Kf7 {[%clk 0:00:36]} 33. Ke2 {[%clk 0:00:16]}  Ke6 {[%clk 0:00:35]} 34. Rc1 {[%clk 0:00:16]}  Rb7 {[%clk 0:00:28]} 35. Kd3 {[%clk 0:00:13]}  Rb2 {[%clk 0:00:27]} 36. f4 {[%clk 0:00:12]}  Bxd6 {[%clk 0:00:26]} 37. Bxa7 {[%clk 0:00:13]}  Rxa2 {[%clk 0:00:26]} 38. Bd4 {[%clk 0:00:12]}  c2 {[%clk 0:00:25]} 39. Rxc2 {[%clk 0:00:10]}  Rxc2 {[%clk 0:00:25]} 40. Kxc2 {[%clk 0:00:11]}  Kd5 {[%clk 0:00:26]} 41. Kd3 {[%clk 0:00:11]}  Bc5 {[%clk 0:00:26]} 42. Bf6 {[%clk 0:00:10]}  Bf2 {[%clk 0:00:24]} 43. g4 {[%clk 0:00:10]}  c5 {[%clk 0:00:23]} 44. gxf5 {[%clk 0:00:08]}  gxf5 {[%clk 0:00:23]} 45. Be5 {[%clk 0:00:07]}  c4+ {[%clk 0:00:22]} 46. Ke2 {[%clk 0:00:06]}  Bd4 {[%clk 0:00:20]} 47. Bb8 {[%clk 0:00:05]}  Ke4 {[%clk 0:00:21]} 48. Kd2 {[%clk 0:00:05]}  Be3+ {[%clk 0:00:20]} 49. Kc3 {[%clk 0:00:05]}  Bxf4 {[%clk 0:00:21]} 50. Ba7 {[%clk 0:00:05]}  Kd5 {[%clk 0:00:21]} 51. Bf2 {[%clk 0:00:04]}  Be5+ {[%clk 0:00:21]} 52. Kc2 {[%clk 0:00:05]}  Bd4 {[%clk 0:00:21]} 53. Bh4 {[%clk 0:00:05]}  Ke4 {[%clk 0:00:22]} 54. Bg5 {[%clk 0:00:04]}  Kf3 {[%clk 0:00:22]} 55. h4 {[%clk 0:00:04]}  Kg4 {[%clk 0:00:22]} 56. Bd8 {[%clk 0:00:03]}  f4 {[%clk 0:00:23]} 0-1


[Site "https://www.chess.com"]